Workbook

Sheet TT (hidden)
B2: Row | C2: Tab | D2: Location | E2: Language 1 | F2: Language 2 | G2: Language 3 | H2: Language 4 | I2: Language 5 | J2: Language 6 | K2: Language 7 | L2: Language 8 | M2: Language 9 | N2: Language 10 | O2: Display
B3: =ROW() -> 3 | C3: Instructions | D3: ="WindSpeed-"&TT[[#This Row],[Tab]] -> WindSpeed-Instructions | E3: This workbook uses "Macros" (automated Excel commands) to assist in the data collection process | F3: Esta pasta de trabalho usa "Macros” (comandos automatizados do Excel) para ajudar no processo de coleta de dados | O3: =INDEX(TT[[#This Row],[Language 1]:[Language 10]],1,LanguageSelect) -> This workbook uses "Macros" (automated Excel commands) to assist in the data collection process | R3: Select Language | S3: =MATCH(LanguageSel,TT!$S$5:$S$14,0) -> 1
B4: =ROW() -> 4 | C4: Instructions | D4: ="WindSpeed-"&TT[[#This Row],[Tab]] -> WindSpeed-Instructions | E4: To use these Macros and have buttons on the spreadsheets work, you must "Enable" the Macros | F4: Para usar estes Macros e ter botões na planilha de trabalho, você deve habilitar os Macros | O4: =INDEX(TT[[#This Row],[Language 1]:[Language 10]],1,LanguageSelect) -> To use these Macros and have buttons on the spreadsheets work, you must "Enable" the Macros
B5: =ROW() -> 5 | C5: Instructions | D5: ="WindSpeed-"&TT[[#This Row],[Tab]] -> WindSpeed-Instructions | E5: Click the "Enable Content" button that appears above when you first open this workbook | F5: Clique o botão do " Habilitar Conteúdo" que aparece em cima ao abrir pela primeira vez esta pasta de trabalho | O5: =INDEX(TT[[#This Row],[Language 1]:[Language 10]],1,LanguageSelect) -> Click the "Enable Content" button that appears above when you first open this workbook | R5: 1 | S5: English
B6: =ROW() -> 6 | C6: Instructions | D6: ="WindSpeed-"&TT[[#This Row],[Tab]] -> WindSpeed-Instructions | E6: Once you have enabled macros, you can use the workbook. If you do not see this message, macros are enabled | F6: Após a habilitação das macros, você pode usar a pasta de trabalho. Se você não vir esta mensagem, as macros estão habilitados | O6: =INDEX(TT[[#This Row],[Language 1]:[Language 10]],1,LanguageSelect) -> Once you have enabled macros, you can use the workbook. If you do not see this message, macros are enabled | R6: 2 | S6: Português
B7: =ROW() -> 7 | C7: Dashboard | D7: ="WindSpeed-"&TT[[#This Row],[Tab]] -> WindSpeed-Dashboard | E7: Temperature | F7: Temperatura | O7: =INDEX(TT[[#This Row],[Language 1]:[Language 10]],1,LanguageSelect) -> Temperature | R7: 3 | S7: Español
B8: =ROW() -> 8 | C8: Dashboard | D8: ="WindSpeed-"&TT[[#This Row],[Tab]] -> WindSpeed-Dashboard | E8: Beaufort Number | F8: Número de Beaufort | O8: =INDEX(TT[[#This Row],[Language 1]:[Language 10]],1,LanguageSelect) -> Beaufort Number | R8: 4
B9: =ROW() -> 9 | C9: Dashboard | D9: ="WindSpeed-"&TT[[#This Row],[Tab]] -> WindSpeed-Dashboard | E9: Wind speed | F9: Velocidade do Vento | O9: =INDEX(TT[[#This Row],[Language 1]:[Language 10]],1,LanguageSelect) -> Wind speed | R9: 5
B10: =ROW() -> 10 | C10: Dashboard | D10: ="WindSpeed-"&TT[[#This Row],[Tab]] -> WindSpeed-Dashboard | E10: Select a location to view weather conditions | F10: Selecione uma localização para ver a condição do tempo | O10: =INDEX(TT[[#This Row],[Language 1]:[Language 10]],1,LanguageSelect) -> Select a location to view weather conditions | R10: 6
B11: =ROW() -> 11 | C11: Dashboard | D11: ="WindSpeed-"&TT[[#This Row],[Tab]] -> WindSpeed-Dashboard | E11: Wind simulator | F11: Simulador do vento | O11: =INDEX(TT[[#This Row],[Language 1]:[Language 10]],1,LanguageSelect) -> Wind simulator | R11: 7
B12: =ROW() -> 12 | C12: Wind Speed (Beaufort) | D12: ="WindSpeed-"&TT[[#This Row],[Tab]] -> WindSpeed-Wind Speed (Beaufort) | E12: Beaufort Scale | F12: Escala Beaufort | O12: =INDEX(TT[[#This Row],[Language 1]:[Language 10]],1,LanguageSelect) -> Beaufort Scale | R12: 8
B13: =ROW() -> 13 | C13: Wind Speed (Beaufort) | D13: ="WindSpeed-"&TT[[#This Row],[Tab]] -> WindSpeed-Wind Speed (Beaufort) | E13: Current Condition | F13: Condição Atual | O13: =INDEX(TT[[#This Row],[Language 1]:[Language 10]],1,LanguageSelect) -> Current Condition | R13: 9
B14: =ROW() -> 14 | C14: Wind Speed (Beaufort) | D14: ="WindSpeed-"&TT[[#This Row],[Tab]] -> WindSpeed-Wind Speed (Beaufort) | E14: = 1 if Wind Speed is at least minimum on scale | F14: = 1 se a Velocidade de Vento for pelo menos o mínimo na escala | O14: =INDEX(TT[[#This Row],[Language 1]:[Language 10]],1,LanguageSelect) -> = 1 if Wind Speed is at least minimum on scale | R14: 10
B15: =ROW() -> 15 | C15: Wind Speed (Beaufort) | D15: ="WindSpeed-"&TT[[#This Row],[Tab]] -> WindSpeed-Wind Speed (Beaufort) | E15: Calm | F15: Calmo | O15: =INDEX(TT[[#This Row],[Language 1]:[Language 10]],1,LanguageSelect) -> Calm
B16: =ROW() -> 16 | C16: Wind Speed (Beaufort) | D16: ="WindSpeed-"&TT[[#This Row],[Tab]] -> WindSpeed-Wind Speed (Beaufort) | E16: Light Air | F16: Ar leve | O16: =INDEX(TT[[#This Row],[Language 1]:[Language 10]],1,LanguageSelect) -> Light Air
B17: =ROW() -> 17 | C17: Wind Speed (Beaufort) | D17: ="WindSpeed-"&TT[[#This Row],[Tab]] -> WindSpeed-Wind Speed (Beaufort) | E17: Light Breeze | F17: Brisa leve | O17: =INDEX(TT[[#This Row],[Language 1]:[Language 10]],1,LanguageSelect) -> Light Breeze
B18: =ROW() -> 18 | C18: Wind Speed (Beaufort) | D18: ="WindSpeed-"&TT[[#This Row],[Tab]] -> WindSpeed-Wind Speed (Beaufort) | E18: Gentle Breeze | F18: Brisa leve | O18: =INDEX(TT[[#This Row],[Language 1]:[Language 10]],1,LanguageSelect) -> Gentle Breeze
B19: =ROW() -> 19 | C19: Wind Speed (Beaufort) | D19: ="WindSpeed-"&TT[[#This Row],[Tab]] -> WindSpeed-Wind Speed (Beaufort) | E19: Moderate Breeze | F19: Brisa moderada | O19: =INDEX(TT[[#This Row],[Language 1]:[Language 10]],1,LanguageSelect) -> Moderate Breeze
B20: =ROW() -> 20 | C20: Wind Speed (Beaufort) | D20: ="WindSpeed-"&TT[[#This Row],[Tab]] -> WindSpeed-Wind Speed (Beaufort) | E20: Fresh Breeze | F20: Brisa fresca | O20: =INDEX(TT[[#This Row],[Language 1]:[Language 10]],1,LanguageSelect) -> Fresh Breeze
B21: =ROW() -> 21 | C21: Wind Speed (Beaufort) | D21: ="WindSpeed-"&TT[[#This Row],[Tab]] -> WindSpeed-Wind Speed (Beaufort) | E21: Strong Breeze | F21: Brisa forte | O21: =INDEX(TT[[#This Row],[Language 1]:[Language 10]],1,LanguageSelect) -> Strong Breeze
B22: =ROW() -> 22 | C22: Wind Speed (Beaufort) | D22: ="WindSpeed-"&TT[[#This Row],[Tab]] -> WindSpeed-Wind Speed (Beaufort) | E22: Near Gale | F22: Quase vendaval | O22: =INDEX(TT[[#This Row],[Language 1]:[Language 10]],1,LanguageSelect) -> Near Gale
B23: =ROW() -> 23 | C23: Wind Speed (Beaufort) | D23: ="WindSpeed-"&TT[[#This Row],[Tab]] -> WindSpeed-Wind Speed (Beaufort) | E23: Gale | F23: Vendaval | O23: =INDEX(TT[[#This Row],[Language 1]:[Language 10]],1,LanguageSelect) -> Gale
B24: =ROW() -> 24 | C24: Wind Speed (Beaufort) | D24: ="WindSpeed-"&TT[[#This Row],[Tab]] -> WindSpeed-Wind Speed (Beaufort) | E24: Strong Gale | F24: Vendaval forte | O24: =INDEX(TT[[#This Row],[Language 1]:[Language 10]],1,LanguageSelect) -> Strong Gale
B25: =ROW() -> 25 | C25: Wind Speed (Beaufort) | D25: ="WindSpeed-"&TT[[#This Row],[Tab]] -> WindSpeed-Wind Speed (Beaufort) | E25: Storm | F25: Tempestade | O25: =INDEX(TT[[#This Row],[Language 1]:[Language 10]],1,LanguageSelect) -> Storm
B26: =ROW() -> 26 | C26: Wind Speed (Beaufort) | D26: ="WindSpeed-"&TT[[#This Row],[Tab]] -> WindSpeed-Wind Speed (Beaufort) | E26: Violent Storm | F26: Tempestade violenta | O26: =INDEX(TT[[#This Row],[Language 1]:[Language 10]],1,LanguageSelect) -> Violent Storm
B27: =ROW() -> 27 | C27: Wind Speed (Beaufort) | D27: ="WindSpeed-"&TT[[#This Row],[Tab]] -> WindSpeed-Wind Speed (Beaufort) | E27: Hurricane Force | F27: Força do Furacão | O27: =INDEX(TT[[#This Row],[Language 1]:[Language 10]],1,LanguageSelect) -> Hurricane Force
B28: =ROW() -> 28 | C28: Location Data | D28: ="WindSpeed-"&TT[[#This Row],[Tab]] -> WindSpeed-Location Data | E28: Temperature | F28: Temperatura | O28: =INDEX(TT[[#This Row],[Language 1]:[Language 10]],1,LanguageSelect) -> Temperature
B29: =ROW() -> 29 | C29: Location Data | D29: ="WindSpeed-"&TT[[#This Row],[Tab]] -> WindSpeed-Location Data | E29: Wind Speed | F29: Velocidade do Vento | O29: =INDEX(TT[[#This Row],[Language 1]:[Language 10]],1,LanguageSelect) -> Wind Speed
B30: =ROW() -> 30 | C30: Location Data | D30: ="WindSpeed-"&TT[[#This Row],[Tab]] -> WindSpeed-Location Data | E30: Wind Simulator | F30: Simulador do vento | O30: =INDEX(TT[[#This Row],[Language 1]:[Language 10]],1,LanguageSelect) -> Wind Simulator
B31: =ROW() -> 31 | C31: Location Data | D31: ="WindSpeed-"&TT[[#This Row],[Tab]] -> WindSpeed-Location Data | E31: Local Time: | F31: Hora local: | O31: =INDEX(TT[[#This Row],[Language 1]:[Language 10]],1,LanguageSelect) -> Local Time:
B32: =ROW() -> 32 | C32: Location Data | D32: ="WindSpeed-"&TT[[#This Row],[Tab]] -> WindSpeed-Location Data | E32: Getting Data | F32: Obtendo os Dados | O32: =INDEX(TT[[#This Row],[Language 1]:[Language 10]],1,LanguageSelect) -> Getting Data
B33: =ROW() -> 33 | C33: Location Data | D33: ="WindSpeed-"&TT[[#This Row],[Tab]] -> WindSpeed-Location Data | E33: My Device | F33: Meu dispositivo | O33: =INDEX(TT[[#This Row],[Language 1]:[Language 10]],1,LanguageSelect) -> My Device
B34: =ROW() -> 34 | C34: Location Data | D34: ="WindSpeed-"&TT[[#This Row],[Tab]] -> WindSpeed-Location Data | E34: Seattle, USA | F34: Seattle, EUA | O34: =INDEX(TT[[#This Row],[Language 1]:[Language 10]],1,LanguageSelect) -> Seattle, USA
B35: =ROW() -> 35 | C35: Location Data | D35: ="WindSpeed-"&TT[[#This Row],[Tab]] -> WindSpeed-Location Data | E35: Chicago, USA | F35: Chicago, EUA | O35: =INDEX(TT[[#This Row],[Language 1]:[Language 10]],1,LanguageSelect) -> Chicago, USA
B36: =ROW() -> 36 | C36: Location Data | D36: ="WindSpeed-"&TT[[#This Row],[Tab]] -> WindSpeed-Location Data | E36: New York, USA | F36: Nova Iorque, EUA | O36: =INDEX(TT[[#This Row],[Language 1]:[Language 10]],1,LanguageSelect) -> New York, USA
B37: =ROW() -> 37 | C37: Location Data | D37: ="WindSpeed-"&TT[[#This Row],[Tab]] -> WindSpeed-Location Data | E37: Paris, France | F37: Paris, France | O37: =INDEX(TT[[#This Row],[Language 1]:[Language 10]],1,LanguageSelect) -> Paris, France
B38: =ROW() -> 38 | C38: Location Data | D38: ="WindSpeed-"&TT[[#This Row],[Tab]] -> WindSpeed-Location Data | E38: Seoul, South Korea | F38: Seul, Coreia do Sul | O38: =INDEX(TT[[#This Row],[Language 1]:[Language 10]],1,LanguageSelect) -> Seoul, South Korea
B39: =ROW() -> 39 | C39: Location Data | D39: ="WindSpeed-"&TT[[#This Row],[Tab]] -> WindSpeed-Location Data | E39: Prague, Czech Republic | F39: Praga República Checa | O39: =INDEX(TT[[#This Row],[Language 1]:[Language 10]],1,LanguageSelect) -> Prague, Czech Republic
B40: =ROW() -> 40 | C40: Location Data | D40: ="WindSpeed-"&TT[[#This Row],[Tab]] -> WindSpeed-Location Data | E40: Edinburg, Scotland | F40: Edimburgo, Escócia | O40: =INDEX(TT[[#This Row],[Language 1]:[Language 10]],1,LanguageSelect) -> Edinburg, Scotland
B41: =ROW() -> 41 | D41: ="WindSpeed-"&TT[[#This Row],[Tab]] -> WindSpeed- | E41: Rio de Janeiro, Brazil | F41: Rio de Janeiro, Brasil | O41: =INDEX(TT[[#This Row],[Language 1]:[Language 10]],1,LanguageSelect) -> Rio de Janeiro, Brazil
B42: =ROW() -> 42 | C42: Location Data | D42: ="WindSpeed-"&TT[[#This Row],[Tab]] -> WindSpeed-Location Data | E42: Rio Gallegos, Argentina | F42: Rio Gallegos, Argentina. | O42: =INDEX(TT[[#This Row],[Language 1]:[Language 10]],1,LanguageSelect) -> Rio Gallegos, Argentina
B43: =ROW() -> 43 | C43: Location Data | D43: ="WindSpeed-"&TT[[#This Row],[Tab]] -> WindSpeed-Location Data | E43: Mount Everest | F43: Monte Everest | O43: =INDEX(TT[[#This Row],[Language 1]:[Language 10]],1,LanguageSelect) -> Mount Everest
B44: =ROW() -> 44 | C44: Location Data | D44: ="WindSpeed-"&TT[[#This Row],[Tab]] -> WindSpeed-Location Data | E44: Wellington, New Zealand | F44: Wellington, Nova Zelândia. | O44: =INDEX(TT[[#This Row],[Language 1]:[Language 10]],1,LanguageSelect) -> Wellington, New Zealand
B45: =ROW() -> 45 | C45: TT | D45: ="WindSpeed-"&TT[[#This Row],[Tab]] -> WindSpeed-TT | E45: Select language  | F45: Selecionar idioma  | O45: =INDEX(TT[[#This Row],[Language 1]:[Language 10]],1,LanguageSelect) -> Select language 
B46: =ROW() -> 46 | D46: ="WindSpeed-"&TT[[#This Row],[Tab]] -> WindSpeed- | E46: Revolutions per minute | F46: Voltas por minuto | O46: =INDEX(TT[[#This Row],[Language 1]:[Language 10]],1,LanguageSelect) -> Revolutions per minute
B47: =ROW() -> 47 | D47: ="WindSpeed-"&TT[[#This Row],[Tab]] -> WindSpeed- | E47: RPM | F47: RPM | O47: =INDEX(TT[[#This Row],[Language 1]:[Language 10]],1,LanguageSelect) -> RPM
B48: =ROW() -> 48 | D48: ="WindSpeed-"&TT[[#This Row],[Tab]] -> WindSpeed- | E48: Calm; smoke rises vertically | F48: Calma; fumaça sobe verticalmente | O48: =INDEX(TT[[#This Row],[Language 1]:[Language 10]],1,LanguageSelect) -> Calm; smoke rises vertically
B49: =ROW() -> 49 | D49: ="WindSpeed-"&TT[[#This Row],[Tab]] -> WindSpeed- | E49: Direction of wind shown by smoke drift, but not by wind vane. | F49: Direção do vento mostrada pela deriva de fumaça, mas não por palhetas de vento. | O49: =INDEX(TT[[#This Row],[Language 1]:[Language 10]],1,LanguageSelect) -> Direction of wind shown by smoke drift, but not by wind vane.
B50: =ROW() -> 50 | D50: ="WindSpeed-"&TT[[#This Row],[Tab]] -> WindSpeed- | E50: Wind felt on face; leaves rustle; ordinary vanes moved. | F50: Vento sentido no rosto; deixa farfalhar; palhetas comuns se moveram. | O50: =INDEX(TT[[#This Row],[Language 1]:[Language 10]],1,LanguageSelect) -> Wind felt on face; leaves rustle; ordinary vanes moved.
B51: =ROW() -> 51 | D51: ="WindSpeed-"&TT[[#This Row],[Tab]] -> WindSpeed- | E51: Leaves and small twigs in constant motion, wind extends light flag. | F51: Folhas e galhos pequenos em movimento constante, o vento estende a bandeira luminosa. | O51: =INDEX(TT[[#This Row],[Language 1]:[Language 10]],1,LanguageSelect) -> Leaves and small twigs in constant motion, wind extends light flag.
B52: =ROW() -> 52 | D52: ="WindSpeed-"&TT[[#This Row],[Tab]] -> WindSpeed- | E52: Raises dust and loose paper, small branches are moved. | F52: Levanta poeira e papel solto, pequenos galhos são movidos. | O52: =INDEX(TT[[#This Row],[Language 1]:[Language 10]],1,LanguageSelect) -> Raises dust and loose paper, small branches are moved.
B53: =ROW() -> 53 | D53: ="WindSpeed-"&TT[[#This Row],[Tab]] -> WindSpeed- | E53: Small trees in leaf begin to sway; crested wavelets form on inland waters. | F53: Pequenas árvores em folha começam a balançar; ondas de crested formam-se em águas interiores. | O53: =INDEX(TT[[#This Row],[Language 1]:[Language 10]],1,LanguageSelect) -> Small trees in leaf begin to sway; crested wavelets form on inland waters.
B54: =ROW() -> 54 | D54: ="WindSpeed-"&TT[[#This Row],[Tab]] -> WindSpeed- | E54: Large branches in motion; whistling heard in telegraph. | F54: Grandes ramos em movimento; assobiando ouvido no telégrafo. | O54: =INDEX(TT[[#This Row],[Language 1]:[Language 10]],1,LanguageSelect) -> Large branches in motion; whistling heard in telegraph.
B55: =ROW() -> 55 | D55: ="WindSpeed-"&TT[[#This Row],[Tab]] -> WindSpeed- | E55: Whole trees in motion; inconvenience felt when walking. | F55: Árvores inteiras em movimento; inconveniente sentido ao andar. | O55: =INDEX(TT[[#This Row],[Language 1]:[Language 10]],1,LanguageSelect) -> Whole trees in motion; inconvenience felt when walking.
B56: =ROW() -> 56 | D56: ="WindSpeed-"&TT[[#This Row],[Tab]] -> WindSpeed- | E56: Breaks twigs off trees, generally impedes progress. | F56: Quebra galhos de árvores, geralmente impede o progresso. | O56: =INDEX(TT[[#This Row],[Language 1]:[Language 10]],1,LanguageSelect) -> Breaks twigs off trees, generally impedes progress.
B57: =ROW() -> 57 | D57: ="WindSpeed-"&TT[[#This Row],[Tab]] -> WindSpeed- | E57: Slight structural damage occurs (chimney-pots and slates removed). | F57: Ocorre um pequeno dano estrutural (chaminés e ardósias removidas). | O57: =INDEX(TT[[#This Row],[Language 1]:[Language 10]],1,LanguageSelect) -> Slight structural damage occurs (chimney-pots and slates removed).
B58: =ROW() -> 58 | D58: ="WindSpeed-"&TT[[#This Row],[Tab]] -> WindSpeed- | E58: Trees uprooted; considerable damage occurs. | F58: Árvores arrancadas; danos consideráveis ocorrem. | O58: =INDEX(TT[[#This Row],[Language 1]:[Language 10]],1,LanguageSelect) -> Trees uprooted; considerable damage occurs.
B59: =ROW() -> 59 | D59: ="WindSpeed-"&TT[[#This Row],[Tab]] -> WindSpeed- | E59: Violent, wide-spread damage. | F59: Danos violentos e generalizados. | O59: =INDEX(TT[[#This Row],[Language 1]:[Language 10]],1,LanguageSelect) -> Violent, wide-spread damage.
B60: =ROW() -> 60 | D60: ="WindSpeed-"&TT[[#This Row],[Tab]] -> WindSpeed- | E60: Violent, wide-spread damage. | F60: Danos violentos e generalizados. | O60: =INDEX(TT[[#This Row],[Language 1]:[Language 10]],1,LanguageSelect) -> Violent, wide-spread damage.
B61: =ROW() -> 61 | D61: ="WindSpeed-"&TT[[#This Row],[Tab]] -> WindSpeed- | E61: Workbook Setup | F61: Carteira da Pasta de Trabalho | O61: =INDEX(TT[[#This Row],[Language 1]:[Language 10]],1,LanguageSelect) -> Workbook Setup
B62: =ROW() -> 62 | D62: ="WindSpeed-"&TT[[#This Row],[Tab]] -> WindSpeed- | E62: Analyzing wind speed | F62: Analisando a velocidade do vento | O62: =INDEX(TT[[#This Row],[Language 1]:[Language 10]],1,LanguageSelect) -> Analyzing wind speed

Sheet Dash
A1: v. 210714
C2: =TT!O62 -> Analyzing wind speed
C4: =TT!$O$45 -> Select language  | G4: English
D6: =TT!$O$10 -> Select a location to view weather conditions | Q6: =TT!$O$9 -> Wind speed | X6: =TT!$O$12 -> Beaufort Scale | AF6: =TT!$O$28 -> Temperature
E8: Seattle, USA | AF8: 40
AF10: 35
X11: =INDEX(Tbl_Beaufort[Text],BeaufortVal+1) -> Wind felt on face; leaves rustle; ordinary vanes moved.
AF13: 30
X14: 12 | Z14: =TT!$O$27 -> Hurricane Force
AF15: 25
X16: 11 | Z16: =TT!$O$26 -> Violent Storm
X17: 10 | Z17: 10
X18: 10 | Z18: =TT!$O$25 -> Storm
AF19: 20
X21: 9 | Z21: =TT!$O$24 -> Strong Gale
X24: 8 | Z24: =TT!$O$23 -> Gale
AF25: 15
X27: 7 | Z27: =TT!$O$22 -> Near Gale
X30: 6 | Z30: =TT!$O$21 -> Strong Breeze
AF31: 10
Q34: =TT!$O$46 -> Revolutions per minute | X34: 5 | Z34: =TT!$O$20 -> Fresh Breeze
X37: 4 | Z37: =TT!$O$19 -> Moderate Breeze | AF37: 5
Q40: =RPM -> 178 | X40: 3 | Z40: =TT!$O$18 -> Gentle Breeze
AF41: 0
X42: 2 | Z42: =TT!$O$17 -> Light Breeze
D44: =CityName -> Seattle, USA | X44: 1 | Z44: =TT!$O$16 -> Light Air | AF44: =TempVal_C -> 15.55555556
Q45: =TT!O47 -> RPM
K46: =IF(WindSimToggle=1,"☒","☐") -> ☒ | L46: =TT!$O$11 -> Wind simulator | X46: 0 | Z46: =TT!$O$15 -> Calm

Sheet Backend (hidden)
G1: 5.4 | H1: 3.14
E2: City | F2: CityTranslated | G2: X | H2: Y | I2: CityNum | J2: API City Name | K2: Type | L2: Timestamp | M2: Temperature | N2: Wind Speed | P2: Row | Q2: Type | R2: Text | S2: ValOffset | T2: ValEndChar | U2: EndCharLoc | V2: Precedent | W2: SearchStart | X2: Loc | Y2: Len | Z2: End | AA2: Value | AC2: Beaufort num | AD2: Description | AE2: Text | AF2: Min | AG2: Max | AH2: Scale | AI2: Val | AK2: Row | AL2: Val | AM2: Angle | AN2: Radians | AO2: X | AP2: Y
B3: LocNum | C3: =IFERROR(MATCH(CitySel,Tbl_CityLookup[CityTranslated],0),1) -> 2 | E3: My Device | F3: =TT!$O33 -> My Device | G3: -1 | H3: 0 | I3: =ROW()-ROW(Tbl_CityLookup[#Headers]) -> 1 | J3: NA | K3: Data In | L3: =IF(LocNum=1,"Experiment Time: "&TEXT('Data In'!$A$5,"mm:ss.000"),"Data In value") -> Data In value | M3: ='Data In'!$E$5 -> 0 | N3: ='Data In'!$B$5 -> 0 | P3: =ROW()-ROW(Tbl_QueryParsing[#Headers]) -> 1 | Q3: Text | R3: Search | U3: =IF(Tbl_QueryParsing[[#This Row],[ValEndChar]]="",0,SEARCH(Tbl_QueryParsing[[#This Row],[ValEndChar]],QueryResult,Tbl_QueryParsing[[#This Row],[SearchStart]])) -> 0 | V3: =ROW()-ROW(Tbl_QueryParsing[#Headers])-1 -> 0 | W3: =IFERROR(INDEX(Tbl_QueryParsing[End],MATCH(Tbl_QueryParsing[[#This Row],[Precedent]],Tbl_QueryParsing[Row],0)),1)+Tbl_QueryParsing[[#This Row],[ValOffset]] -> 1 | X3: =IF(Tbl_QueryParsing[[#This Row],[Type]]="Text",SEARCH(Tbl_QueryParsing[[#This Row],[Text]],QueryResult,Tbl_QueryParsing[[#This Row],[SearchStart]]),Tbl_QueryParsing[[#This Row],[SearchStart]]) -> 12 | Y3: =IF(Tbl_QueryParsing[[#This Row],[Type]]="Text",LEN(Tbl_QueryParsing[[#This Row],[Text]]),Tbl_QueryParsing[[#This Row],[EndCharLoc]]-Tbl_QueryParsing[[#This Row],[SearchStart]]) -> 6 | Z3: =Tbl_QueryParsing[[#This Row],[Loc]]+Tbl_QueryParsing[[#This Row],[Len]] -> 18 | AA3: =MID(QueryResult,Tbl_QueryParsing[[#This Row],[Loc]],Tbl_QueryParsing[[#This Row],[Len]]) -> Search | AC3: =ROW()-ROW(Tbl_Beaufort[#Headers])-1 -> 0 | AD3: =TT!$O15 -> Calm | AE3: =TT!$O48 -> Calm; smoke rises vertically | AF3: 0 | AG3: 1 | AH3: =IF(Tbl_Beaufort[[#This Row],[Beaufort num]]=BeaufortVal,1,NA()) ->  | AI3: =IF(AND(Tbl_Beaufort[[#This Row],[Min]]<=Wind_KPH,Tbl_Beaufort[[#This Row],[Max]]>Wind_KPH),1,NA()) ->  | AK3: 0 | AL3: =Tbl_GaugeLables[[#This Row],[Row]]*10 -> 0 | AM3: =MOD(210+360-Tbl_GaugeLables[[#This Row],[Val]]*2,360) -> 210 | AN3: =RADIANS(Tbl_GaugeLables[[#This Row],[Angle]]) -> 3.665191429 | AO3: =COS(Tbl_GaugeLables[[#This Row],[Radians]]) -> -0.8660254038 | AP3: =SIN(Tbl_GaugeLables[[#This Row],[Radians]]) -> -0.5
B4: LocQueryName | C4: =_xlfn.SWITCH(INDEX(Tbl_CityLookup[Type],LocNum),"Query",INDEX(Tbl_CityLookup[API City Name],LocNum),"NA") -> Seattle | E4: Seattle, USA | F4: =TT!$O34 -> Seattle, USA | G4: 0.48 | H4: 2.5 | I4: =ROW()-ROW(Tbl_CityLookup[#Headers]) -> 2 | J4: Seattle | K4: Query | L4: Query | M4: Query | N4: Query | P4: =ROW()-ROW(Tbl_QueryParsing[#Headers]) -> 2 | Q4: Text | R4: CurrentWeather | U4: =IF(Tbl_QueryParsing[[#This Row],[ValEndChar]]="",0,SEARCH(Tbl_QueryParsing[[#This Row],[ValEndChar]],QueryResult,Tbl_QueryParsing[[#This Row],[SearchStart]])) -> 0 | V4: =ROW()-ROW(Tbl_QueryParsing[#Headers])-1 -> 1 | W4: =IFERROR(INDEX(Tbl_QueryParsing[End],MATCH(Tbl_QueryParsing[[#This Row],[Precedent]],Tbl_QueryParsing[Row],0)),1)+Tbl_QueryParsing[[#This Row],[ValOffset]] -> 18 | X4: =IF(Tbl_QueryParsing[[#This Row],[Type]]="Text",SEARCH(Tbl_QueryParsing[[#This Row],[Text]],QueryResult,Tbl_QueryParsing[[#This Row],[SearchStart]]),Tbl_QueryParsing[[#This Row],[SearchStart]]) -> 7276 | Y4: =IF(Tbl_QueryParsing[[#This Row],[Type]]="Text",LEN(Tbl_QueryParsing[[#This Row],[Text]]),Tbl_QueryParsing[[#This Row],[EndCharLoc]]-Tbl_QueryParsing[[#This Row],[SearchStart]]) -> 14 | Z4: =Tbl_QueryParsing[[#This Row],[Loc]]+Tbl_QueryParsing[[#This Row],[Len]] -> 7290 | AA4: =MID(QueryResult,Tbl_QueryParsing[[#This Row],[Loc]],Tbl_QueryParsing[[#This Row],[Len]]) -> currentWeather | AC4: =ROW()-ROW(Tbl_Beaufort[#Headers])-1 -> 1 | AD4: =TT!$O16 -> Light Air | AE4: =TT!$O49 -> Direction of wind shown by smoke drift, but not by wind vane. | AF4: 1 | AG4: 6 | AH4: =IF(Tbl_Beaufort[[#This Row],[Beaufort num]]=BeaufortVal,1,NA()) ->  | AI4: =IF(AND(Tbl_Beaufort[[#This Row],[Min]]<=Wind_KPH,Tbl_Beaufort[[#This Row],[Max]]>Wind_KPH),1,NA()) ->  | AK4: 1 | AL4: =Tbl_GaugeLables[[#This Row],[Row]]*10 -> 10 | AM4: =MOD(210+360-Tbl_GaugeLables[[#This Row],[Val]]*2,360) -> 190 | AN4: =RADIANS(Tbl_GaugeLables[[#This Row],[Angle]]) -> 3.316125579 | AO4: =COS(Tbl_GaugeLables[[#This Row],[Radians]]) -> -0.984807753 | AP4: =SIN(Tbl_GaugeLables[[#This Row],[Radians]]) -> -0.1736481777
B5: QueryResult | C5: =IF(LocQueryName="NA","NA",udf_GETBINGWEATHER(LocQueryName)) -> {"_type": "SearchResponse", "instrumentation": {"_type": "ResponseInstrumentation", "pingUrlBase": "https:\/\/www.bingapis.com\/api\/ping?IG=1CD05836E1BD4C028C4E564C2DA963E6&CID=1EE1B8411BC161A12438A8371A496058&ID=", "pageLoadPingUrl": "https:\/\/www.bingapis.com\/api\/ping\/pageload?IG=1CD05836E1BD4C028C4E564C2DA963E6&CID=1EE1B8411BC161A12438A8371A496058&Type=Event.CPT&DATA=0"}, "queryContext": {"originalQuery": "Seattleresponsefilter=weather"}, "webPages": {"webSearchUrl": "https:\/\/www.bing.com\/search?q=Seattleresponsefilter%3dweather", "webSearchUrlPingSuffix": "DevEx,5257.1", "totalEstimatedMatches": 46, "value": [{"id": "https:\/\/www.bingapis.com\/api\/v7\/#WebPages.0", "name": "Emergency and Survival | REI Co-op", "url": "https:\/\/www.rei.com\/c\/emergency-and-survival", "urlPingSuffix": "DevEx,5078.1", "isFamilyFriendly": true, "displayUrl": "https:\/\/www.rei.com\/c\/emergency-and-survival", "snippet": "Shop for Emergency and Survival at REI - FREE SHIPPING With $50 minimum purchase. Curbside Pickup Available NOW! 100% Satisfaction Guarantee", "dateLastCrawled": "2021-07-14T06:09:00.0000000Z", "language": "en", "isNavigational": false}, {"id": "https:\/\/www.bingapis.com\/api\/v7\/#WebPages.1", "name": "PLBs and Satellite Messengers | REI Co-op", "url": "https:\/\/www.rei.com\/c\/plbs-and-satellite-messengers", "urlPingSuffix": "DevEx,5094.1", "isFamilyFriendly": true, "displayUrl": "https:\/\/www.rei.com\/c\/plbs-and-satellite-messengers", "snippet": "Shop for PLBs and Satellite Messengers at REI - FREE SHIPPING With $50 minimum purchase. Curbside Pickup Available NOW! 100% Satisfaction Guarantee", "deepLinks": [{"name": "Garmin Inreach Mini 2-Way Satellite Communicator", "url": "https:\/\/www.rei.com\/product\/140110\/garmin-inreach-mini", "urlPingSuffix": "DevEx,5258.1"}, {"name": "Garmin Gpsmap 66I GPS and 2-Way Satellite Communicator", "url": "https:\/\/www.rei.com\/product\/163568\/garmin-gpsmap-66i", "urlPingSuffix": "DevEx,5259.1"}, {"name": "Spot Gen3 Satellite GPS Messenger", "url": "https:\/\/www.rei.com\/product\/860469\/spot-gen3-satellite-gps-messenger", "urlPingSuffix": "DevEx,5260.1"}, {"name": "Garmin Inreach Explorer+ 2-Way Satellite Communicator", "url": "https:\/\/www.rei.com\/product\/119863\/garmin-inreach-explorer", "urlPingSuffix": "DevEx,5261.1"}, {"name": "Spot X 2-Way Satellite Messenger With Bluetooth", "url": "https:\/\/www.rei.com\/product\/172306\/spot-x-with-bluetooth", "urlPingSuffix": "DevEx,5262.1"}], "dateLastCrawled": "2021-07-12T17:58:00.0000000Z", "language": "en", "isNavigational": false}, {"id": "https:\/\/www.bingapis.com\/api\/v7\/#WebPages.2", "name": "CBS News - Breaking news, 24\/7 live streaming news & top ...", "url": "https:\/\/www.cbsnews.com\/", "urlPingSuffix": "DevEx,5111.1", "isFamilyFriendly": true, "displayUrl": "https:\/\/www.cbsnews.com", "snippet": "Watch CBSN the live news stream from CBS News and get the latest, breaking news headlines of the day for national news and world news today.", "dateLastCrawled": "2021-07-14T00:42:00.0000000Z", "language": "en", "isNavigational": false}, {"id": "https:\/\/www.bingapis.com\/api\/v7\/#WebPages.3", "name": "Investigation of the predictability and physical ...", "url": "https:\/\/agupubs.onlinelibrary.wiley.com\/doi\/full\/10.1002\/2015JD023584", "urlPingSuffix": "DevEx,5134.1", "isFamilyFriendly": true, "displayUrl": "https:\/\/agupubs.onlinelibrary.wiley.com\/doi\/full\/10.1002\/2015JD023584", "snippet": "Forecast uncertainties and physical mechanisms of a quasi-linear extreme-rain-producing mesoscale convective system (MCS) along the Meiyu front in East China, during the midnight-to-morning hours on 8 July 2007, are studied using ensembles of 24 h convection-permitting simulations with a nested grid spacing of 1.11 km.", "dateLastCrawled": "2021-07-09T12:39:00.0000000Z", "language": "en", "isNavigational": false}, {"id": "https:\/\/www.bingapis.com\/api\/v7\/#WebPages.4", "name": "@facebook | Twitter", "url": "https:\/\/twitter.com\/facebook", "urlPingSuffix": "DevEx,5147.1", "isFamilyFriendly": true, "displayUrl": "https:\/\/twitter.com\/facebook", "snippet": "The latest tweets from @facebook", "dateLastCrawled": "2021-03-30T14:08:00.0000000Z", "language": "en", "isNavigational": false}]}, "entities": {"readLink": "https:\/\/www.bingapis.com\/api\/v7\/entities\/search?q=Seattleresponsefilter=weather", "queryScenario": "Disambiguation", "value": [{"id": "https:\/\/www.bingapis.com\/api\/v7\/entities\/0a985fc5-6c6a-ff51-ed2c-b928b1cb09d2", "readLink": "https:\/\/www.bingapis.com\/api\/v7\/search?q=CBS+News+(Broadcast+Media)&filters=sid:%220a985fc5-6c6a-ff51-ed2c-b928b1cb09d2%22&responsefilter=entities,places", "readLinkPingSuffix": "DevEx,5263.1", "contractualRules": [{"_type": "ContractualRules\/LicenseAttribution", "targetPropertyName": "description", "mustBeCloseToContent": true, "license": {"name": "CC-BY-SA", "url": "http:\/\/creativecommons.org\/licenses\/by-sa\/3.0\/", "urlPingSuffix": "DevEx,5267.1"}, "licenseNotice": "Text under CC-BY-SA license"}, {"_type": "ContractualRules\/LinkAttribution", "targetPropertyName": "description", "mustBeCloseToContent": true, "text": "Wikipedia", "url": "http:\/\/en.wikipedia.org\/wiki\/CBS_News", "urlPingSuffix": "DevEx,5266.1"}, {"_type": "ContractualRules\/MediaAttribution", "targetPropertyName": "image", "mustBeCloseToContent": true, "url": "http:\/\/www.cbsnews.com\/", "urlPingSuffix": "DevEx,5265.1"}], "webSearchUrl": "https:\/\/www.bing.com\/search?q=cbs+news&filters=ufn%3a%22cbs+news%22+sid%3a%220a985fc5-6c6a-ff51-ed2c-b928b1cb09d2%22&FORM=SNAPST", "webSearchUrlPingSuffix": "DevEx,5235.1", "name": "CBS News (Broadcast Media)", "image": {"name": "CBS News", "thumbnailUrl": "https:\/\/www.bing.com\/th?id=AMMS_56a672dab9561fd2c331ce80add8ecf1&w=72&h=72&c=7&rs=1&qlt=80&cdv=1&pid=16.1", "provider": [{"_type": "Organization", "url": "http:\/\/www.cbsnews.com\/", "urlPingSuffix": "DevEx,5265.1"}], "width": 72, "height": 72, "sourceWidth": 256, "sourceHeight": 256}, "description": "CBS News is the news division of the American television and radio service CBS. CBS News television programs include the CBS Evening News, CBS This Morning, news magazine programs CBS News Sunday Morning, 60 Minutes, and 48 Hours, and Sunday morning political affairs program Face the Nation. CBS News Radio produces hourly newscasts for hundreds of radio stations, and also oversees CBS News podcasts like The Takeout Podcast. CBS News also operates the 24-hour digital news network CBSN.", "entityPresentationInfo": {"entityScenario": "DisambiguationItem", "entityTypeHints": ["Organization"], "entityTypeDisplayHint": "Broadcast Media"}}]}, "weather": {"id": "https:\/\/www.bingapis.com\/api\/v7\/#Weather", "contractualRules": [{"_type": "ContractualRules\/LinkAttribution", "text": "Foreca", "url": "http:\/\/corporate.foreca.com\/en\/about-us", "urlPingSuffix": "DevEx,5256.1"}], "attributions": [{"provider": {"name": "Foreca", "url": "http:\/\/corporate.foreca.com\/en\/about-us", "urlPingSuffix": "DevEx,5256.1"}}], "location": {"name": "Seattle", "geo": {"latitude": 47.6032, "longitude": -122.3303}, "address": {"addressLocality": "Seattle", "addressRegion": "Washington", "addressCountry": "United States"}}, "currentWeather": {"image": {"url": "https:\/\/www.bing.com\/th?id=OBW.v1.Cloudy", "thumbnailUrl": "https:\/\/www.bing.com\/th?id=OBW.v1.Cloudy", "width": 75, "height": 75}, "conditionSummary": "Cloudy", "conditionDescription": "Cloudy", "temperature": {"value": 60, "unitText": "Fahrenheit"}, "precipitationChance": 30, "humidity": 78, "windSpeed": {"value": 5, "unitText": "MilesPerHour"}, "windDirection": {"value": 199, "unitText": "DegreesAzimuth"}, "date": "2021-07-16T00:00:00.0000000", "highTemperature": {"value": 70, "unitText": "Fahrenheit"}, "lowTemperature": {"value": 55, "unitText": "Fahrenheit"}, "sunrise": "2021-07-16T05:27:57.0000000", "sunset": "2021-07-16T21:02:16.0000000"}, "dailyForecast": [{"image": {"url": "https:\/\/www.bing.com\/th?id=OBW.v1.PartlyCloudyDay", "thumbnailUrl": "https:\/\/www.bing.com\/th?id=OBW.v1.PartlyCloudyDay", "width": 75, "height": 75}, "conditionSummary": "Clear", "conditionDescription": "Partly sunny", "precipitationChance": 0, "date": "2021-07-17T00:00:00.0000000", "highTemperature": {"value": 74, "unitText": "Fahrenheit"}, "lowTemperature": {"value": 54, "unitText": "Fahrenheit"}}, {"image": {"url": "https:\/\/www.bing.com\/th?id=OBW.v1.SunnyDay", "thumbnailUrl": "https:\/\/www.bing.com\/th?id=OBW.v1.SunnyDay", "width": 75, "height": 75}, "conditionSummary": "Sunny", "conditionDescription": "Sunny", "precipitationChance": 0, "date": "2021-07-18T00:00:00.0000000", "highTemperature": {"value": 77, "unitText": "Fahrenheit"}, "lowTemperature": {"value": 55, "unitText": "Fahrenheit"}}, {"image": {"url": "https:\/\/www.bing.com\/th?id=OBW.v1.SunnyDay", "thumbnailUrl": "https:\/\/www.bing.com\/th?id=OBW.v1.SunnyDay", "width": 75, "height": 75}, "conditionSummary": "Sunny", "conditionDescription": "Sunny", "precipitationChance": 0, "date": "2021-07-19T00:00:00.0000000", "highTemperature": {"value": 78, "unitText": "Fahrenheit"}, "lowTemperature": {"value": 56, "unitText": "Fahrenheit"}}, {"image": {"url": "https:\/\/www.bing.com\/th?id=OBW.v1.SunnyDay", "thumbnailUrl": "https:\/\/www.bing.com\/th?id=OBW.v1.SunnyDay", "width": 75, "height": 75}, "conditionSummary": "Sunny", "conditionDescription": "Sunny", "precipitationChance": 0, "date": "2021-07-20T00:00:00.0000000", "highTemperature": {"value": 76, "unitText": "Fahrenheit"}, "lowTemperature": {"value": 54, "unitText": "Fahrenheit"}}, {"image": {"url": "https:\/\/www.bing.com\/th?id=OBW.v1.SunnyDay", "thumbnailUrl": "https:\/\/www.bing.com\/th?id=OBW.v1.SunnyDay", "width": 75, "height": 75}, "conditionSummary": "Sunny", "conditionDescription": "Sunny", "precipitationChance": 2, "date": "2021-07-21T00:00:00.0000000", "highTemperature": {"value": 73, "unitText": "Fahrenheit"}, "lowTemperature": {"value": 54, "unitText": "Fahrenheit"}}, {"image": {"url": "https:\/\/www.bing.com\/th?id=OBW.v1.SunnyDay", "thumbnailUrl": "https:\/\/www.bing.com\/th?id=OBW.v1.SunnyDay", "width": 75, "height": 75}, "conditionSummary": "Sunny", "conditionDescription": "Sunny", "precipitationChance": 2, "date": "2021-07-22T00:00:00.0000000", "highTemperature": {"value": 74, "unitText": "Fahrenheit"}, "lowTemperature": {"value": 56, "unitText": "Fahrenheit"}}, {"image": {"url": "https:\/\/www.bing.com\/th?id=OBW.v1.SunnyDay", "thumbnailUrl": "https:\/\/www.bing.com\/th?id=OBW.v1.SunnyDay", "width": 75, "height": 75}, "conditionSummary": "Sunny", "conditionDescription": "Sunny", "precipitationChance": 2, "date": "2021-07-23T00:00:00.0000000", "highTemperature": {"value": 77, "unitText": "Fahrenheit"}, "lowTemperature": {"value": 58, "unitText": "Fahrenheit"}}, {"image": {"url": "https:\/\/www.bing.com\/th?id=OBW.v1.SunnyDay", "thumbnailUrl": "https:\/\/www.bing.com\/th?id=OBW.v1.SunnyDay", "width": 75, "height": 75}, "conditionSummary": "Sunny", "conditionDescription": "Sunny", "precipitationChance": 3, "date": "2021-07-24T00:00:00.0000000", "highTemperature": {"value": 78, "unitText": "Fahrenheit"}, "lowTemperature": {"value": 59, "unitText": "Fahrenheit"}}, {"image": {"url": "https:\/\/www.bing.com\/th?id=OBW.v1.SunnyDay", "thumbnailUrl": "https:\/\/www.bing.com\/th?id=OBW.v1.SunnyDay", "width": 75, "height": 75}, "conditionSummary": "Sunny", "conditionDescription": "Sunny", "precipitationChance": 2, "date": "2021-07-25T00:00:00.0000000", "highTemperature": {"value": 75, "unitText": "Fahrenheit"}, "lowTemperature": {"value": 59, "unitText": "Fahrenheit"}}]}, "rankingResponse": {"mainline": {"items": [{"answerType": "Weather", "value": {"id": "https:\/\/www.bingapis.com\/api\/v7\/#Weather"}}, {"answerType": "WebPages", "resultIndex": 0, "value": {"id": "https:\/\/www.bingapis.com\/api\/v7\/#WebPages.0"}}, {"answerType": "WebPages", "resultIndex": 1, "value": {"id": "https:\/\/www.bingapis.com\/api\/v7\/#WebPages.1"}}, {"answerType": "WebPages", "resultIndex": 2, "value": {"id": "https:\/\/www.bingapis.com\/api\/v7\/#WebPages.2"}}, {"answerType": "WebPages", "resultIndex": 3, "value": {"id": "https:\/\/www.bingapis.com\/api\/v7\/#WebPages.3"}}, {"answerType": "WebPages", "resultIndex": 4, "value": {"id": "https:\/\/www.bingapis.com\/api\/v7\/#WebPages.4"}}, {"answerType": "BingGlobal"}]}, "sidebar": {"items": [{"answerType": "Entities", "resultIndex": 0, "value": {"id": "https:\/\/www.bingapis.com\/api\/v7\/entities\/0a985fc5-6c6a-ff51-ed2c-b928b1cb09d2"}}]}, "pagination": {"items": [{"answerType": "Pagination", "value": {"id": "https:\/\/www.bingapis.com\/api\/v7\/#Pagination"}}]}}, "pagination": {"id": "https:\/\/www.bingapis.com\/api\/v7\/#Pagination", "currentPageNumber": 1, "nextPage": {"pageNumber": 2, "offset": 5}, "paginationLinks": [{"pageNumber": 1, "offset": 0}, {"pageNumber": 2, "offset": 5}, {"pageNumber": 3, "offset": 15}, {"pageNumber": 4, "offset": 25}, {"pageNumber": 5, "offset": 35}]}} | E5: Chicago, USA | F5: =TT!$O35 -> Chicago, USA | G5: 1 | H5: 2.4 | I5: =ROW()-ROW(Tbl_CityLookup[#Headers]) -> 3 | J5: Chicago | K5: Query | L5: Query | M5: Query | N5: Query | P5: =ROW()-ROW(Tbl_QueryParsing[#Headers]) -> 3 | Q5: Text | R5: Temperature | U5: =IF(Tbl_QueryParsing[[#This Row],[ValEndChar]]="",0,SEARCH(Tbl_QueryParsing[[#This Row],[ValEndChar]],QueryResult,Tbl_QueryParsing[[#This Row],[SearchStart]])) -> 0 | V5: =ROW()-ROW(Tbl_QueryParsing[#Headers])-1 -> 2 | W5: =IFERROR(INDEX(Tbl_QueryParsing[End],MATCH(Tbl_QueryParsing[[#This Row],[Precedent]],Tbl_QueryParsing[Row],0)),1)+Tbl_QueryParsing[[#This Row],[ValOffset]] -> 7290 | X5: =IF(Tbl_QueryParsing[[#This Row],[Type]]="Text",SEARCH(Tbl_QueryParsing[[#This Row],[Text]],QueryResult,Tbl_QueryParsing[[#This Row],[SearchStart]]),Tbl_QueryParsing[[#This Row],[SearchStart]]) -> 7514 | Y5: =IF(Tbl_QueryParsing[[#This Row],[Type]]="Text",LEN(Tbl_QueryParsing[[#This Row],[Text]]),Tbl_QueryParsing[[#This Row],[EndCharLoc]]-Tbl_QueryParsing[[#This Row],[SearchStart]]) -> 11 | Z5: =Tbl_QueryParsing[[#This Row],[Loc]]+Tbl_QueryParsing[[#This Row],[Len]] -> 7525 | AA5: =MID(QueryResult,Tbl_QueryParsing[[#This Row],[Loc]],Tbl_QueryParsing[[#This Row],[Len]]) -> temperature | AC5: =ROW()-ROW(Tbl_Beaufort[#Headers])-1 -> 2 | AD5: =TT!$O17 -> Light Breeze | AE5: =TT!$O50 -> Wind felt on face; leaves rustle; ordinary vanes moved. | AF5: 6 | AG5: 12 | AH5: =IF(Tbl_Beaufort[[#This Row],[Beaufort num]]=BeaufortVal,1,NA()) -> 1 | AI5: =IF(AND(Tbl_Beaufort[[#This Row],[Min]]<=Wind_KPH,Tbl_Beaufort[[#This Row],[Max]]>Wind_KPH),1,NA()) -> 1 | AK5: 2 | AL5: =Tbl_GaugeLables[[#This Row],[Row]]*10 -> 20 | AM5: =MOD(210+360-Tbl_GaugeLables[[#This Row],[Val]]*2,360) -> 170 | AN5: =RADIANS(Tbl_GaugeLables[[#This Row],[Angle]]) -> 2.967059728 | AO5: =COS(Tbl_GaugeLables[[#This Row],[Radians]]) -> -0.984807753 | AP5: =SIN(Tbl_GaugeLables[[#This Row],[Radians]]) -> 0.1736481777
B6: TempVal_F | C6: =IF(QueryResult="NA",INDEX(Tbl_CityLookup[Temperature],LocNum)*1.8+32,VALUE(INDEX(Tbl_QueryParsing[Value],MATCH(B6,Tbl_QueryParsing[Text],0)))) -> 60 | E6: New York, USA | F6: =TT!$O36 -> New York, USA | G6: 1.24 | H6: 2.35 | I6: =ROW()-ROW(Tbl_CityLookup[#Headers]) -> 4 | J6: New York, USA | K6: Query | L6: Query | M6: Query | N6: Query | P6: =ROW()-ROW(Tbl_QueryParsing[#Headers]) -> 4 | Q6: Text | R6: Value | U6: =IF(Tbl_QueryParsing[[#This Row],[ValEndChar]]="",0,SEARCH(Tbl_QueryParsing[[#This Row],[ValEndChar]],QueryResult,Tbl_QueryParsing[[#This Row],[SearchStart]])) -> 0 | V6: =ROW()-ROW(Tbl_QueryParsing[#Headers])-1 -> 3 | W6: =IFERROR(INDEX(Tbl_QueryParsing[End],MATCH(Tbl_QueryParsing[[#This Row],[Precedent]],Tbl_QueryParsing[Row],0)),1)+Tbl_QueryParsing[[#This Row],[ValOffset]] -> 7525 | X6: =IF(Tbl_QueryParsing[[#This Row],[Type]]="Text",SEARCH(Tbl_QueryParsing[[#This Row],[Text]],QueryResult,Tbl_QueryParsing[[#This Row],[SearchStart]]),Tbl_QueryParsing[[#This Row],[SearchStart]]) -> 7530 | Y6: =IF(Tbl_QueryParsing[[#This Row],[Type]]="Text",LEN(Tbl_QueryParsing[[#This Row],[Text]]),Tbl_QueryParsing[[#This Row],[EndCharLoc]]-Tbl_QueryParsing[[#This Row],[SearchStart]]) -> 5 | Z6: =Tbl_QueryParsing[[#This Row],[Loc]]+Tbl_QueryParsing[[#This Row],[Len]] -> 7535 | AA6: =MID(QueryResult,Tbl_QueryParsing[[#This Row],[Loc]],Tbl_QueryParsing[[#This Row],[Len]]) -> value | AC6: =ROW()-ROW(Tbl_Beaufort[#Headers])-1 -> 3 | AD6: =TT!$O18 -> Gentle Breeze | AE6: =TT!$O51 -> Leaves and small twigs in constant motion, wind extends light flag. | AF6: 12 | AG6: 20 | AH6: =IF(Tbl_Beaufort[[#This Row],[Beaufort num]]=BeaufortVal,1,NA()) ->  | AI6: =IF(AND(Tbl_Beaufort[[#This Row],[Min]]<=Wind_KPH,Tbl_Beaufort[[#This Row],[Max]]>Wind_KPH),1,NA()) ->  | AK6: 3 | AL6: =Tbl_GaugeLables[[#This Row],[Row]]*10 -> 30 | AM6: =MOD(210+360-Tbl_GaugeLables[[#This Row],[Val]]*2,360) -> 150 | AN6: =RADIANS(Tbl_GaugeLables[[#This Row],[Angle]]) -> 2.617993878 | AO6: =COS(Tbl_GaugeLables[[#This Row],[Radians]]) -> -0.8660254038 | AP6: =SIN(Tbl_GaugeLables[[#This Row],[Radians]]) -> 0.5
B7: TempVal_C | C7: =(TempVal_F-32)*5/9 -> 15.55555556 | E7: Paris, France | F7: =TT!$O37 -> Paris, France | G7: 2.48 | H7: 2.47 | I7: =ROW()-ROW(Tbl_CityLookup[#Headers]) -> 5 | J7: Paris, FR | K7: Query | L7: Query | M7: Query | N7: Query | P7: =ROW()-ROW(Tbl_QueryParsing[#Headers]) -> 5 | Q7: Value | R7: TempVal_F | S7: 3 | T7: , | U7: =IF(Tbl_QueryParsing[[#This Row],[ValEndChar]]="",0,SEARCH(Tbl_QueryParsing[[#This Row],[ValEndChar]],QueryResult,Tbl_QueryParsing[[#This Row],[SearchStart]])) -> 7540 | V7: =ROW()-ROW(Tbl_QueryParsing[#Headers])-1 -> 4 | W7: =IFERROR(INDEX(Tbl_QueryParsing[End],MATCH(Tbl_QueryParsing[[#This Row],[Precedent]],Tbl_QueryParsing[Row],0)),1)+Tbl_QueryParsing[[#This Row],[ValOffset]] -> 7538 | X7: =IF(Tbl_QueryParsing[[#This Row],[Type]]="Text",SEARCH(Tbl_QueryParsing[[#This Row],[Text]],QueryResult,Tbl_QueryParsing[[#This Row],[SearchStart]]),Tbl_QueryParsing[[#This Row],[SearchStart]]) -> 7538 | Y7: =IF(Tbl_QueryParsing[[#This Row],[Type]]="Text",LEN(Tbl_QueryParsing[[#This Row],[Text]]),Tbl_QueryParsing[[#This Row],[EndCharLoc]]-Tbl_QueryParsing[[#This Row],[SearchStart]]) -> 2 | Z7: =Tbl_QueryParsing[[#This Row],[Loc]]+Tbl_QueryParsing[[#This Row],[Len]] -> 7540 | AA7: =MID(QueryResult,Tbl_QueryParsing[[#This Row],[Loc]],Tbl_QueryParsing[[#This Row],[Len]]) -> 60 | AC7: =ROW()-ROW(Tbl_Beaufort[#Headers])-1 -> 4 | AD7: =TT!$O19 -> Moderate Breeze | AE7: =TT!$O52 -> Raises dust and loose paper, small branches are moved. | AF7: 20 | AG7: 29 | AH7: =IF(Tbl_Beaufort[[#This Row],[Beaufort num]]=BeaufortVal,1,NA()) ->  | AI7: =IF(AND(Tbl_Beaufort[[#This Row],[Min]]<=Wind_KPH,Tbl_Beaufort[[#This Row],[Max]]>Wind_KPH),1,NA()) ->  | AK7: 4 | AL7: =Tbl_GaugeLables[[#This Row],[Row]]*10 -> 40 | AM7: =MOD(210+360-Tbl_GaugeLables[[#This Row],[Val]]*2,360) -> 130 | AN7: =RADIANS(Tbl_GaugeLables[[#This Row],[Angle]]) -> 2.268928028 | AO7: =COS(Tbl_GaugeLables[[#This Row],[Radians]]) -> -0.6427876097 | AP7: =SIN(Tbl_GaugeLables[[#This Row],[Radians]]) -> 0.7660444431
B8: MaxTemp | C8: 40 | E8: Seoul, South Korea | F8: =TT!$O38 -> Seoul, South Korea | G8: 4.65 | H8: 2.25 | I8: =ROW()-ROW(Tbl_CityLookup[#Headers]) -> 6 | J8: Seoul | K8: Query | L8: Query | M8: Query | N8: Query | P8: =ROW()-ROW(Tbl_QueryParsing[#Headers]) -> 6 | Q8: Text | R8: Windspeed | U8: =IF(Tbl_QueryParsing[[#This Row],[ValEndChar]]="",0,SEARCH(Tbl_QueryParsing[[#This Row],[ValEndChar]],QueryResult,Tbl_QueryParsing[[#This Row],[SearchStart]])) -> 0 | V8: =ROW()-ROW(Tbl_QueryParsing[#Headers])-1 -> 5 | W8: =IFERROR(INDEX(Tbl_QueryParsing[End],MATCH(Tbl_QueryParsing[[#This Row],[Precedent]],Tbl_QueryParsing[Row],0)),1)+Tbl_QueryParsing[[#This Row],[ValOffset]] -> 7540 | X8: =IF(Tbl_QueryParsing[[#This Row],[Type]]="Text",SEARCH(Tbl_QueryParsing[[#This Row],[Text]],QueryResult,Tbl_QueryParsing[[#This Row],[SearchStart]]),Tbl_QueryParsing[[#This Row],[SearchStart]]) -> 7613 | Y8: =IF(Tbl_QueryParsing[[#This Row],[Type]]="Text",LEN(Tbl_QueryParsing[[#This Row],[Text]]),Tbl_QueryParsing[[#This Row],[EndCharLoc]]-Tbl_QueryParsing[[#This Row],[SearchStart]]) -> 9 | Z8: =Tbl_QueryParsing[[#This Row],[Loc]]+Tbl_QueryParsing[[#This Row],[Len]] -> 7622 | AA8: =MID(QueryResult,Tbl_QueryParsing[[#This Row],[Loc]],Tbl_QueryParsing[[#This Row],[Len]]) -> windSpeed | AC8: =ROW()-ROW(Tbl_Beaufort[#Headers])-1 -> 5 | AD8: =TT!$O20 -> Fresh Breeze | AE8: =TT!$O53 -> Small trees in leaf begin to sway; crested wavelets form on inland waters. | AF8: 29 | AG8: 39 | AH8: =IF(Tbl_Beaufort[[#This Row],[Beaufort num]]=BeaufortVal,1,NA()) ->  | AI8: =IF(AND(Tbl_Beaufort[[#This Row],[Min]]<=Wind_KPH,Tbl_Beaufort[[#This Row],[Max]]>Wind_KPH),1,NA()) ->  | AK8: 5 | AL8: =Tbl_GaugeLables[[#This Row],[Row]]*10 -> 50 | AM8: =MOD(210+360-Tbl_GaugeLables[[#This Row],[Val]]*2,360) -> 110 | AN8: =RADIANS(Tbl_GaugeLables[[#This Row],[Angle]]) -> 1.919862177 | AO8: =COS(Tbl_GaugeLables[[#This Row],[Radians]]) -> -0.3420201433 | AP8: =SIN(Tbl_GaugeLables[[#This Row],[Radians]]) -> 0.9396926208
B9: Wind_MPH | C9: =IF(QueryResult="NA",INDEX(Tbl_CityLookup[Wind Speed],LocNum)/1.609344,VALUE(INDEX(Tbl_QueryParsing[Value],MATCH(B9,Tbl_QueryParsing[Text],0)))) -> 5 | E9: Prague, Czech Republic | F9: =TT!$O39 -> Prague, Czech Republic | G9: 2.67 | H9: 2.51 | I9: =ROW()-ROW(Tbl_CityLookup[#Headers]) -> 7 | J9: Prague, CZ | K9: Query | L9: Query | M9: Query | N9: Query | P9: =ROW()-ROW(Tbl_QueryParsing[#Headers]) -> 7 | Q9: Text | R9: Value | U9: =IF(Tbl_QueryParsing[[#This Row],[ValEndChar]]="",0,SEARCH(Tbl_QueryParsing[[#This Row],[ValEndChar]],QueryResult,Tbl_QueryParsing[[#This Row],[SearchStart]])) -> 0 | V9: =ROW()-ROW(Tbl_QueryParsing[#Headers])-1 -> 6 | W9: =IFERROR(INDEX(Tbl_QueryParsing[End],MATCH(Tbl_QueryParsing[[#This Row],[Precedent]],Tbl_QueryParsing[Row],0)),1)+Tbl_QueryParsing[[#This Row],[ValOffset]] -> 7622 | X9: =IF(Tbl_QueryParsing[[#This Row],[Type]]="Text",SEARCH(Tbl_QueryParsing[[#This Row],[Text]],QueryResult,Tbl_QueryParsing[[#This Row],[SearchStart]]),Tbl_QueryParsing[[#This Row],[SearchStart]]) -> 7627 | Y9: =IF(Tbl_QueryParsing[[#This Row],[Type]]="Text",LEN(Tbl_QueryParsing[[#This Row],[Text]]),Tbl_QueryParsing[[#This Row],[EndCharLoc]]-Tbl_QueryParsing[[#This Row],[SearchStart]]) -> 5 | Z9: =Tbl_QueryParsing[[#This Row],[Loc]]+Tbl_QueryParsing[[#This Row],[Len]] -> 7632 | AA9: =MID(QueryResult,Tbl_QueryParsing[[#This Row],[Loc]],Tbl_QueryParsing[[#This Row],[Len]]) -> value | AC9: =ROW()-ROW(Tbl_Beaufort[#Headers])-1 -> 6 | AD9: =TT!$O21 -> Strong Breeze | AE9: =TT!$O54 -> Large branches in motion; whistling heard in telegraph. | AF9: 39 | AG9: 50 | AH9: =IF(Tbl_Beaufort[[#This Row],[Beaufort num]]=BeaufortVal,1,NA()) ->  | AI9: =IF(AND(Tbl_Beaufort[[#This Row],[Min]]<=Wind_KPH,Tbl_Beaufort[[#This Row],[Max]]>Wind_KPH),1,NA()) ->  | AK9: 6 | AL9: =Tbl_GaugeLables[[#This Row],[Row]]*10 -> 60 | AM9: =MOD(210+360-Tbl_GaugeLables[[#This Row],[Val]]*2,360) -> 90 | AN9: =RADIANS(Tbl_GaugeLables[[#This Row],[Angle]]) -> 1.570796327 | AO9: =COS(Tbl_GaugeLables[[#This Row],[Radians]]) -> 6.125742275e-17 | AP9: =SIN(Tbl_GaugeLables[[#This Row],[Radians]]) -> 1
B10: Wind_KPH | C10: =MIN(Wind_MPH*1.609344,999) -> 8.04672 | E10: Edinburg, Scotland | F10: =TT!$O40 -> Edinburg, Scotland | G10: 2.42 | H10: 2.63 | I10: =ROW()-ROW(Tbl_CityLookup[#Headers]) -> 8 | J10: Edinburg, UK | K10: Query | L10: Query | M10: Query | N10: Query | P10: =ROW()-ROW(Tbl_QueryParsing[#Headers]) -> 8 | Q10: Value | R10: Wind_MPH | S10: 3 | T10: , | U10: =IF(Tbl_QueryParsing[[#This Row],[ValEndChar]]="",0,SEARCH(Tbl_QueryParsing[[#This Row],[ValEndChar]],QueryResult,Tbl_QueryParsing[[#This Row],[SearchStart]])) -> 7636 | V10: =ROW()-ROW(Tbl_QueryParsing[#Headers])-1 -> 7 | W10: =IFERROR(INDEX(Tbl_QueryParsing[End],MATCH(Tbl_QueryParsing[[#This Row],[Precedent]],Tbl_QueryParsing[Row],0)),1)+Tbl_QueryParsing[[#This Row],[ValOffset]] -> 7635 | X10: =IF(Tbl_QueryParsing[[#This Row],[Type]]="Text",SEARCH(Tbl_QueryParsing[[#This Row],[Text]],QueryResult,Tbl_QueryParsing[[#This Row],[SearchStart]]),Tbl_QueryParsing[[#This Row],[SearchStart]]) -> 7635 | Y10: =IF(Tbl_QueryParsing[[#This Row],[Type]]="Text",LEN(Tbl_QueryParsing[[#This Row],[Text]]),Tbl_QueryParsing[[#This Row],[EndCharLoc]]-Tbl_QueryParsing[[#This Row],[SearchStart]]) -> 1 | Z10: =Tbl_QueryParsing[[#This Row],[Loc]]+Tbl_QueryParsing[[#This Row],[Len]] -> 7636 | AA10: =MID(QueryResult,Tbl_QueryParsing[[#This Row],[Loc]],Tbl_QueryParsing[[#This Row],[Len]]) -> 5 | AC10: =ROW()-ROW(Tbl_Beaufort[#Headers])-1 -> 7 | AD10: =TT!$O22 -> Near Gale | AE10: =TT!$O55 -> Whole trees in motion; inconvenience felt when walking. | AF10: 50 | AG10: 62 | AH10: =IF(Tbl_Beaufort[[#This Row],[Beaufort num]]=BeaufortVal,1,NA()) ->  | AI10: =IF(AND(Tbl_Beaufort[[#This Row],[Min]]<=Wind_KPH,Tbl_Beaufort[[#This Row],[Max]]>Wind_KPH),1,NA()) ->  | AK10: 7 | AL10: =Tbl_GaugeLables[[#This Row],[Row]]*10 -> 70 | AM10: =MOD(210+360-Tbl_GaugeLables[[#This Row],[Val]]*2,360) -> 70 | AN10: =RADIANS(Tbl_GaugeLables[[#This Row],[Angle]]) -> 1.221730476 | AO10: =COS(Tbl_GaugeLables[[#This Row],[Radians]]) -> 0.3420201433 | AP10: =SIN(Tbl_GaugeLables[[#This Row],[Radians]]) -> 0.9396926208
B11: Timestamp | C11: =NOW() -> 2021-07-16T20:54:55.180 | E11: Rio de Janeiro, Brazil | F11: =TT!$O41 -> Rio de Janeiro, Brazil | G11: 1.7 | H11: 1.13 | I11: =ROW()-ROW(Tbl_CityLookup[#Headers]) -> 9 | J11: Araruama, Brazil | K11: Query | L11: Query | M11: Query | N11: Query | AC11: =ROW()-ROW(Tbl_Beaufort[#Headers])-1 -> 8 | AD11: =TT!$O23 -> Gale | AE11: =TT!$O56 -> Breaks twigs off trees, generally impedes progress. | AF11: 62 | AG11: 75 | AH11: =IF(Tbl_Beaufort[[#This Row],[Beaufort num]]=BeaufortVal,1,NA()) ->  | AI11: =IF(AND(Tbl_Beaufort[[#This Row],[Min]]<=Wind_KPH,Tbl_Beaufort[[#This Row],[Max]]>Wind_KPH),1,NA()) ->  | AK11: 8 | AL11: =Tbl_GaugeLables[[#This Row],[Row]]*10 -> 80 | AM11: =MOD(210+360-Tbl_GaugeLables[[#This Row],[Val]]*2,360) -> 50 | AN11: =RADIANS(Tbl_GaugeLables[[#This Row],[Angle]]) -> 0.872664626 | AO11: =COS(Tbl_GaugeLables[[#This Row],[Radians]]) -> 0.6427876097 | AP11: =SIN(Tbl_GaugeLables[[#This Row],[Radians]]) -> 0.7660444431
E12: Rio Gallegos, Argentina | F12: =TT!$O42 -> Rio Gallegos, Argentina | G12: 1.38 | H12: 0.7 | I12: =ROW()-ROW(Tbl_CityLookup[#Headers]) -> 10 | J12: NA | K12: Flat | L12: Local Time: n/a (Average Conditions) | M12: 7.638461538 | N12: 25.749 | AC12: =ROW()-ROW(Tbl_Beaufort[#Headers])-1 -> 9 | AD12: =TT!$O24 -> Strong Gale | AE12: =TT!$O57 -> Slight structural damage occurs (chimney-pots and slates removed). | AF12: 75 | AG12: 89 | AH12: =IF(Tbl_Beaufort[[#This Row],[Beaufort num]]=BeaufortVal,1,NA()) ->  | AI12: =IF(AND(Tbl_Beaufort[[#This Row],[Min]]<=Wind_KPH,Tbl_Beaufort[[#This Row],[Max]]>Wind_KPH),1,NA()) ->  | AK12: 9 | AL12: =Tbl_GaugeLables[[#This Row],[Row]]*10 -> 90 | AM12: =MOD(210+360-Tbl_GaugeLables[[#This Row],[Val]]*2,360) -> 30 | AN12: =RADIANS(Tbl_GaugeLables[[#This Row],[Angle]]) -> 0.5235987756 | AO12: =COS(Tbl_GaugeLables[[#This Row],[Radians]]) -> 0.8660254038 | AP12: =SIN(Tbl_GaugeLables[[#This Row],[Radians]]) -> 0.5
B13: Anenometer Diameter (cm) | C13: 24 | E13: Mount Everest | F13: =TT!$O43 -> Mount Everest | G13: 3.98 | H13: 2.11 | I13: =ROW()-ROW(Tbl_CityLookup[#Headers]) -> 11 | J13: NA | K13: Flat | L13: Local Time: n/a (Average Conditions) | M13: -26 | N13: 46.1 | AC13: =ROW()-ROW(Tbl_Beaufort[#Headers])-1 -> 10 | AD13: =TT!$O25 -> Storm | AE13: =TT!$O58 -> Trees uprooted; considerable damage occurs. | AF13: 89 | AG13: 103 | AH13: =IF(Tbl_Beaufort[[#This Row],[Beaufort num]]=BeaufortVal,1,NA()) ->  | AI13: =IF(AND(Tbl_Beaufort[[#This Row],[Min]]<=Wind_KPH,Tbl_Beaufort[[#This Row],[Max]]>Wind_KPH),1,NA()) ->  | AK13: 10 | AL13: =Tbl_GaugeLables[[#This Row],[Row]]*10 -> 100 | AM13: =MOD(210+360-Tbl_GaugeLables[[#This Row],[Val]]*2,360) -> 10 | AN13: =RADIANS(Tbl_GaugeLables[[#This Row],[Angle]]) -> 0.1745329252 | AO13: =COS(Tbl_GaugeLables[[#This Row],[Radians]]) -> 0.984807753 | AP13: =SIN(Tbl_GaugeLables[[#This Row],[Radians]]) -> 0.1736481777
B14: Anemometer Circumference (cm) | C14: =Device_d*PI() -> 75.39822369 | E14: Wellington, New Zealand | F14: =TT!$O44 -> Wellington, New Zealand | G14: 5.26 | H14: 0.72 | I14: =ROW()-ROW(Tbl_CityLookup[#Headers]) -> 12 | J14: NA | K14: Flat | L14: Local Time: n/a (Average Conditions) | M14: 12.66923077 | N14: 28.968 | AC14: =ROW()-ROW(Tbl_Beaufort[#Headers])-1 -> 11 | AD14: =TT!$O26 -> Violent Storm | AE14: =TT!$O59 -> Violent, wide-spread damage. | AF14: 103 | AG14: 118 | AH14: =IF(Tbl_Beaufort[[#This Row],[Beaufort num]]=BeaufortVal,1,NA()) ->  | AI14: =IF(AND(Tbl_Beaufort[[#This Row],[Min]]<=Wind_KPH,Tbl_Beaufort[[#This Row],[Max]]>Wind_KPH),1,NA()) ->  | AK14: 11 | AL14: =Tbl_GaugeLables[[#This Row],[Row]]*10 -> 110 | AM14: =MOD(210+360-Tbl_GaugeLables[[#This Row],[Val]]*2,360) -> 350 | AN14: =RADIANS(Tbl_GaugeLables[[#This Row],[Angle]]) -> 6.108652382 | AO14: =COS(Tbl_GaugeLables[[#This Row],[Radians]]) -> 0.984807753 | AP14: =SIN(Tbl_GaugeLables[[#This Row],[Radians]]) -> -0.1736481777
B15: Wind_cmPMin | C15: =Wind_KPH*100000/60 -> 13411.2 | AC15: =ROW()-ROW(Tbl_Beaufort[#Headers])-1 -> 12 | AD15: =TT!$O27 -> Hurricane Force | AE15: =TT!$O60 -> Violent, wide-spread damage. | AF15: 118 | AG15: 999.999 | AH15: =IF(Tbl_Beaufort[[#This Row],[Beaufort num]]=BeaufortVal,1,NA()) ->  | AI15: =IF(AND(Tbl_Beaufort[[#This Row],[Min]]<=Wind_KPH,Tbl_Beaufort[[#This Row],[Max]]>Wind_KPH),1,NA()) ->  | AK15: 12 | AL15: =Tbl_GaugeLables[[#This Row],[Row]]*10 -> 120 | AM15: =MOD(210+360-Tbl_GaugeLables[[#This Row],[Val]]*2,360) -> 330 | AN15: =RADIANS(Tbl_GaugeLables[[#This Row],[Angle]]) -> 5.759586532 | AO15: =COS(Tbl_GaugeLables[[#This Row],[Radians]]) -> 0.8660254038 | AP15: =SIN(Tbl_GaugeLables[[#This Row],[Radians]]) -> -0.5
B16: RPM | C16: =ROUND(Wind_cmPMin/Device_c,0) -> 178
B17: BeaufortVal | C17: =IFERROR(MATCH(1,Tbl_Beaufort[Val],0),1)-1 -> 2
B18: BeaufortDesc | C18: =INDEX(Tbl_Beaufort[Description],BeaufortVal+1) -> Light Breeze | E18: =QueryResult -> {"_type": "SearchResponse", "instrumentation": {"_type": "ResponseInstrumentation", "pingUrlBase": "https:\/\/www.bingapis.com\/api\/ping?IG=1CD05836E1BD4C028C4E564C2DA963E6&CID=1EE1B8411BC161A12438A8371A496058&ID=", "pageLoadPingUrl": "https:\/\/www.bingapis.com\/api\/ping\/pageload?IG=1CD05836E1BD4C028C4E564C2DA963E6&CID=1EE1B8411BC161A12438A8371A496058&Type=Event.CPT&DATA=0"}, "queryContext": {"originalQuery": "Seattleresponsefilter=weather"}, "webPages": {"webSearchUrl": "https:\/\/www.bing.com\/search?q=Seattleresponsefilter%3dweather", "webSearchUrlPingSuffix": "DevEx,5257.1", "totalEstimatedMatches": 46, "value": [{"id": "https:\/\/www.bingapis.com\/api\/v7\/#WebPages.0", "name": "Emergency and Survival | REI Co-op", "url": "https:\/\/www.rei.com\/c\/emergency-and-survival", "urlPingSuffix": "DevEx,5078.1", "isFamilyFriendly": true, "displayUrl": "https:\/\/www.rei.com\/c\/emergency-and-survival", "snippet": "Shop for Emergency and Survival at REI - FREE SHIPPING With $50 minimum purchase. Curbside Pickup Available NOW! 100% Satisfaction Guarantee", "dateLastCrawled": "2021-07-14T06:09:00.0000000Z", "language": "en", "isNavigational": false}, {"id": "https:\/\/www.bingapis.com\/api\/v7\/#WebPages.1", "name": "PLBs and Satellite Messengers | REI Co-op", "url": "https:\/\/www.rei.com\/c\/plbs-and-satellite-messengers", "urlPingSuffix": "DevEx,5094.1", "isFamilyFriendly": true, "displayUrl": "https:\/\/www.rei.com\/c\/plbs-and-satellite-messengers", "snippet": "Shop for PLBs and Satellite Messengers at REI - FREE SHIPPING With $50 minimum purchase. Curbside Pickup Available NOW! 100% Satisfaction Guarantee", "deepLinks": [{"name": "Garmin Inreach Mini 2-Way Satellite Communicator", "url": "https:\/\/www.rei.com\/product\/140110\/garmin-inreach-mini", "urlPingSuffix": "DevEx,5258.1"}, {"name": "Garmin Gpsmap 66I GPS and 2-Way Satellite Communicator", "url": "https:\/\/www.rei.com\/product\/163568\/garmin-gpsmap-66i", "urlPingSuffix": "DevEx,5259.1"}, {"name": "Spot Gen3 Satellite GPS Messenger", "url": "https:\/\/www.rei.com\/product\/860469\/spot-gen3-satellite-gps-messenger", "urlPingSuffix": "DevEx,5260.1"}, {"name": "Garmin Inreach Explorer+ 2-Way Satellite Communicator", "url": "https:\/\/www.rei.com\/product\/119863\/garmin-inreach-explorer", "urlPingSuffix": "DevEx,5261.1"}, {"name": "Spot X 2-Way Satellite Messenger With Bluetooth", "url": "https:\/\/www.rei.com\/product\/172306\/spot-x-with-bluetooth", "urlPingSuffix": "DevEx,5262.1"}], "dateLastCrawled": "2021-07-12T17:58:00.0000000Z", "language": "en", "isNavigational": false}, {"id": "https:\/\/www.bingapis.com\/api\/v7\/#WebPages.2", "name": "CBS News - Breaking news, 24\/7 live streaming news & top ...", "url": "https:\/\/www.cbsnews.com\/", "urlPingSuffix": "DevEx,5111.1", "isFamilyFriendly": true, "displayUrl": "https:\/\/www.cbsnews.com", "snippet": "Watch CBSN the live news stream from CBS News and get the latest, breaking news headlines of the day for national news and world news today.", "dateLastCrawled": "2021-07-14T00:42:00.0000000Z", "language": "en", "isNavigational": false}, {"id": "https:\/\/www.bingapis.com\/api\/v7\/#WebPages.3", "name": "Investigation of the predictability and physical ...", "url": "https:\/\/agupubs.onlinelibrary.wiley.com\/doi\/full\/10.1002\/2015JD023584", "urlPingSuffix": "DevEx,5134.1", "isFamilyFriendly": true, "displayUrl": "https:\/\/agupubs.onlinelibrary.wiley.com\/doi\/full\/10.1002\/2015JD023584", "snippet": "Forecast uncertainties and physical mechanisms of a quasi-linear extreme-rain-producing mesoscale convective system (MCS) along the Meiyu front in East China, during the midnight-to-morning hours on 8 July 2007, are studied using ensembles of 24 h convection-permitting simulations with a nested grid spacing of 1.11 km.", "dateLastCrawled": "2021-07-09T12:39:00.0000000Z", "language": "en", "isNavigational": false}, {"id": "https:\/\/www.bingapis.com\/api\/v7\/#WebPages.4", "name": "@facebook | Twitter", "url": "https:\/\/twitter.com\/facebook", "urlPingSuffix": "DevEx,5147.1", "isFamilyFriendly": true, "displayUrl": "https:\/\/twitter.com\/facebook", "snippet": "The latest tweets from @facebook", "dateLastCrawled": "2021-03-30T14:08:00.0000000Z", "language": "en", "isNavigational": false}]}, "entities": {"readLink": "https:\/\/www.bingapis.com\/api\/v7\/entities\/search?q=Seattleresponsefilter=weather", "queryScenario": "Disambiguation", "value": [{"id": "https:\/\/www.bingapis.com\/api\/v7\/entities\/0a985fc5-6c6a-ff51-ed2c-b928b1cb09d2", "readLink": "https:\/\/www.bingapis.com\/api\/v7\/search?q=CBS+News+(Broadcast+Media)&filters=sid:%220a985fc5-6c6a-ff51-ed2c-b928b1cb09d2%22&responsefilter=entities,places", "readLinkPingSuffix": "DevEx,5263.1", "contractualRules": [{"_type": "ContractualRules\/LicenseAttribution", "targetPropertyName": "description", "mustBeCloseToContent": true, "license": {"name": "CC-BY-SA", "url": "http:\/\/creativecommons.org\/licenses\/by-sa\/3.0\/", "urlPingSuffix": "DevEx,5267.1"}, "licenseNotice": "Text under CC-BY-SA license"}, {"_type": "ContractualRules\/LinkAttribution", "targetPropertyName": "description", "mustBeCloseToContent": true, "text": "Wikipedia", "url": "http:\/\/en.wikipedia.org\/wiki\/CBS_News", "urlPingSuffix": "DevEx,5266.1"}, {"_type": "ContractualRules\/MediaAttribution", "targetPropertyName": "image", "mustBeCloseToContent": true, "url": "http:\/\/www.cbsnews.com\/", "urlPingSuffix": "DevEx,5265.1"}], "webSearchUrl": "https:\/\/www.bing.com\/search?q=cbs+news&filters=ufn%3a%22cbs+news%22+sid%3a%220a985fc5-6c6a-ff51-ed2c-b928b1cb09d2%22&FORM=SNAPST", "webSearchUrlPingSuffix": "DevEx,5235.1", "name": "CBS News (Broadcast Media)", "image": {"name": "CBS News", "thumbnailUrl": "https:\/\/www.bing.com\/th?id=AMMS_56a672dab9561fd2c331ce80add8ecf1&w=72&h=72&c=7&rs=1&qlt=80&cdv=1&pid=16.1", "provider": [{"_type": "Organization", "url": "http:\/\/www.cbsnews.com\/", "urlPingSuffix": "DevEx,5265.1"}], "width": 72, "height": 72, "sourceWidth": 256, "sourceHeight": 256}, "description": "CBS News is the news division of the American television and radio service CBS. CBS News television programs include the CBS Evening News, CBS This Morning, news magazine programs CBS News Sunday Morning, 60 Minutes, and 48 Hours, and Sunday morning political affairs program Face the Nation. CBS News Radio produces hourly newscasts for hundreds of radio stations, and also oversees CBS News podcasts like The Takeout Podcast. CBS News also operates the 24-hour digital news network CBSN.", "entityPresentationInfo": {"entityScenario": "DisambiguationItem", "entityTypeHints": ["Organization"], "entityTypeDisplayHint": "Broadcast Media"}}]}, "weather": {"id": "https:\/\/www.bingapis.com\/api\/v7\/#Weather", "contractualRules": [{"_type": "ContractualRules\/LinkAttribution", "text": "Foreca", "url": "http:\/\/corporate.foreca.com\/en\/about-us", "urlPingSuffix": "DevEx,5256.1"}], "attributions": [{"provider": {"name": "Foreca", "url": "http:\/\/corporate.foreca.com\/en\/about-us", "urlPingSuffix": "DevEx,5256.1"}}], "location": {"name": "Seattle", "geo": {"latitude": 47.6032, "longitude": -122.3303}, "address": {"addressLocality": "Seattle", "addressRegion": "Washington", "addressCountry": "United States"}}, "currentWeather": {"image": {"url": "https:\/\/www.bing.com\/th?id=OBW.v1.Cloudy", "thumbnailUrl": "https:\/\/www.bing.com\/th?id=OBW.v1.Cloudy", "width": 75, "height": 75}, "conditionSummary": "Cloudy", "conditionDescription": "Cloudy", "temperature": {"value": 60, "unitText": "Fahrenheit"}, "precipitationChance": 30, "humidity": 78, "windSpeed": {"value": 5, "unitText": "MilesPerHour"}, "windDirection": {"value": 199, "unitText": "DegreesAzimuth"}, "date": "2021-07-16T00:00:00.0000000", "highTemperature": {"value": 70, "unitText": "Fahrenheit"}, "lowTemperature": {"value": 55, "unitText": "Fahrenheit"}, "sunrise": "2021-07-16T05:27:57.0000000", "sunset": "2021-07-16T21:02:16.0000000"}, "dailyForecast": [{"image": {"url": "https:\/\/www.bing.com\/th?id=OBW.v1.PartlyCloudyDay", "thumbnailUrl": "https:\/\/www.bing.com\/th?id=OBW.v1.PartlyCloudyDay", "width": 75, "height": 75}, "conditionSummary": "Clear", "conditionDescription": "Partly sunny", "precipitationChance": 0, "date": "2021-07-17T00:00:00.0000000", "highTemperature": {"value": 74, "unitText": "Fahrenheit"}, "lowTemperature": {"value": 54, "unitText": "Fahrenheit"}}, {"image": {"url": "https:\/\/www.bing.com\/th?id=OBW.v1.SunnyDay", "thumbnailUrl": "https:\/\/www.bing.com\/th?id=OBW.v1.SunnyDay", "width": 75, "height": 75}, "conditionSummary": "Sunny", "conditionDescription": "Sunny", "precipitationChance": 0, "date": "2021-07-18T00:00:00.0000000", "highTemperature": {"value": 77, "unitText": "Fahrenheit"}, "lowTemperature": {"value": 55, "unitText": "Fahrenheit"}}, {"image": {"url": "https:\/\/www.bing.com\/th?id=OBW.v1.SunnyDay", "thumbnailUrl": "https:\/\/www.bing.com\/th?id=OBW.v1.SunnyDay", "width": 75, "height": 75}, "conditionSummary": "Sunny", "conditionDescription": "Sunny", "precipitationChance": 0, "date": "2021-07-19T00:00:00.0000000", "highTemperature": {"value": 78, "unitText": "Fahrenheit"}, "lowTemperature": {"value": 56, "unitText": "Fahrenheit"}}, {"image": {"url": "https:\/\/www.bing.com\/th?id=OBW.v1.SunnyDay", "thumbnailUrl": "https:\/\/www.bing.com\/th?id=OBW.v1.SunnyDay", "width": 75, "height": 75}, "conditionSummary": "Sunny", "conditionDescription": "Sunny", "precipitationChance": 0, "date": "2021-07-20T00:00:00.0000000", "highTemperature": {"value": 76, "unitText": "Fahrenheit"}, "lowTemperature": {"value": 54, "unitText": "Fahrenheit"}}, {"image": {"url": "https:\/\/www.bing.com\/th?id=OBW.v1.SunnyDay", "thumbnailUrl": "https:\/\/www.bing.com\/th?id=OBW.v1.SunnyDay", "width": 75, "height": 75}, "conditionSummary": "Sunny", "conditionDescription": "Sunny", "precipitationChance": 2, "date": "2021-07-21T00:00:00.0000000", "highTemperature": {"value": 73, "unitText": "Fahrenheit"}, "lowTemperature": {"value": 54, "unitText": "Fahrenheit"}}, {"image": {"url": "https:\/\/www.bing.com\/th?id=OBW.v1.SunnyDay", "thumbnailUrl": "https:\/\/www.bing.com\/th?id=OBW.v1.SunnyDay", "width": 75, "height": 75}, "conditionSummary": "Sunny", "conditionDescription": "Sunny", "precipitationChance": 2, "date": "2021-07-22T00:00:00.0000000", "highTemperature": {"value": 74, "unitText": "Fahrenheit"}, "lowTemperature": {"value": 56, "unitText": "Fahrenheit"}}, {"image": {"url": "https:\/\/www.bing.com\/th?id=OBW.v1.SunnyDay", "thumbnailUrl": "https:\/\/www.bing.com\/th?id=OBW.v1.SunnyDay", "width": 75, "height": 75}, "conditionSummary": "Sunny", "conditionDescription": "Sunny", "precipitationChance": 2, "date": "2021-07-23T00:00:00.0000000", "highTemperature": {"value": 77, "unitText": "Fahrenheit"}, "lowTemperature": {"value": 58, "unitText": "Fahrenheit"}}, {"image": {"url": "https:\/\/www.bing.com\/th?id=OBW.v1.SunnyDay", "thumbnailUrl": "https:\/\/www.bing.com\/th?id=OBW.v1.SunnyDay", "width": 75, "height": 75}, "conditionSummary": "Sunny", "conditionDescription": "Sunny", "precipitationChance": 3, "date": "2021-07-24T00:00:00.0000000", "highTemperature": {"value": 78, "unitText": "Fahrenheit"}, "lowTemperature": {"value": 59, "unitText": "Fahrenheit"}}, {"image": {"url": "https:\/\/www.bing.com\/th?id=OBW.v1.SunnyDay", "thumbnailUrl": "https:\/\/www.bing.com\/th?id=OBW.v1.SunnyDay", "width": 75, "height": 75}, "conditionSummary": "Sunny", "conditionDescription": "Sunny", "precipitationChance": 2, "date": "2021-07-25T00:00:00.0000000", "highTemperature": {"value": 75, "unitText": "Fahrenheit"}, "lowTemperature": {"value": 59, "unitText": "Fahrenheit"}}]}, "rankingResponse": {"mainline": {"items": [{"answerType": "Weather", "value": {"id": "https:\/\/www.bingapis.com\/api\/v7\/#Weather"}}, {"answerType": "WebPages", "resultIndex": 0, "value": {"id": "https:\/\/www.bingapis.com\/api\/v7\/#WebPages.0"}}, {"answerType": "WebPages", "resultIndex": 1, "value": {"id": "https:\/\/www.bingapis.com\/api\/v7\/#WebPages.1"}}, {"answerType": "WebPages", "resultIndex": 2, "value": {"id": "https:\/\/www.bingapis.com\/api\/v7\/#WebPages.2"}}, {"answerType": "WebPages", "resultIndex": 3, "value": {"id": "https:\/\/www.bingapis.com\/api\/v7\/#WebPages.3"}}, {"answerType": "WebPages", "resultIndex": 4, "value": {"id": "https:\/\/www.bingapis.com\/api\/v7\/#WebPages.4"}}, {"answerType": "BingGlobal"}]}, "sidebar": {"items": [{"answerType": "Entities", "resultIndex": 0, "value": {"id": "https:\/\/www.bingapis.com\/api\/v7\/entities\/0a985fc5-6c6a-ff51-ed2c-b928b1cb09d2"}}]}, "pagination": {"items": [{"answerType": "Pagination", "value": {"id": "https:\/\/www.bingapis.com\/api\/v7\/#Pagination"}}]}}, "pagination": {"id": "https:\/\/www.bingapis.com\/api\/v7\/#Pagination", "currentPageNumber": 1, "nextPage": {"pageNumber": 2, "offset": 5}, "paginationLinks": [{"pageNumber": 1, "offset": 0}, {"pageNumber": 2, "offset": 5}, {"pageNumber": 3, "offset": 15}, {"pageNumber": 4, "offset": 25}, {"pageNumber": 5, "offset": 35}]}}
B19: TempC | C19: =MAX(MIN(TempVal_C,MaxTemp),0) -> 15.55555556
B20: TempGauge | C20: =MaxTemp-TempC -> 24.44444444 | X20: Live Vol | Y20: 70 | AA20: A | AB20: =Y20 -> 70
B21: WindSpeed | C21: =MAX(MIN(Wind_KPH,120),0.4) -> 8.04672 | AA21: ~A | AB21: =Y23-Y20 -> 30
B22: Gauge | C22: =180-C21 -> 171.95328
B23: MarkerX | C23: =INDEX(Tbl_CityLookup[X],LocNum) -> 0.48 | X23: Max | Y23: 100
B24: MarkerY | C24: =INDEX(Tbl_CityLookup[Y],LocNum)+0.12 -> 2.62
B25: CityName | C25: =INDEX(Tbl_CityLookup[CityTranslated],LocNum) -> Seattle, USA
B26: WindSimToggle | C26: 1 | D26: 🔘🞅⭕⭘○◯◉
B27: WindVal | C27: =WindSimToggle*MIN(MAX(Wind_KPH*10,80),255) -> 80.4672 | D27: ☐☒

Sheet Data In
A1: Data In (From Source) | K1: update
A2: Data coming from the current data source will appear below as it is received.
A3: Current Data
A4: Time | B4: Wind Speed | C4: RPM | D4: Time Interval | E4: Temp (°C) | F4: Temp (°F)
A6: Historical Data
A7: =IF(A4="","",A4) -> Time | B7: =IF(B4="","",B4) -> Wind Speed | C7: RPM | D7: Time Interval | E7: Temp (°C) | F7: Temp (°F)

Sheet Data Out
A1: Data Out (To Device) | K1: update
A2: Data entered into the channels below will be sent to the currently connected device as a comma-delimited string.
A4: CH1 | B4: CH2 | C4: CH3 | D4: CH4 | E4: CH5
D5: =WindVal -> 80.4672

Sheet Settings
A1: Workbook Settings | H1: update | K1: update
A2: Settings below will affect how data is read into the current workbook from data sources. Clear a field's contents to revert to its default setting.
A4: Data interval (ms) | B4: 150 | C4: 75
A6: Data rows | B6: 15 | C6: 1
A8: Data channels | B8: 10 | C8: 5
A10: Data orientation | B10: Newest last
A12: WARNING: Changing settings may result in the loss of content and/or custom formatting in the Data In and Data Out worksheets. Always save before changing values.
